Cogmind - Beta 12 *** ADVENTURER MODE // 2023.12.31 @ 20:53:23 Player: Darcyisverycute Result: Self-destructed Performance ------------- Evolutions (1) 500 Regions Visited (4) 800 Robots Destroyed (5) 25 Value Destroyed (205) 205 Prototype IDs (0) 0 Alien Tech Used (0) 0 Bonus (200) 200 TOTAL SCORE: 1730 Bonus ------- Pacifist 200 Cogmind --------- Core Integrity 120/400 Matter 294/450 Energy 100/100 System Corruption 0% Temperature Cool (85) Movement Core (150) Ox2 Location -9/Storage Parts ------- > --- POWER (1) -------- (None) > --- PROPULSION (4) --- (None) > --- UTILITY (2) ------ Small Storage Unit Large Matter Pod > --- WEAPON (2) ------- Small Laser > --- INVENTORY (8) ---- Flight Unit Improved Targeting Computer Improved Targeting Computer Improved Targeting Computer Improved Targeting Computer Mining Laser Peak State ------------ > --- POWER ------------ Ion Engine > --- PROPULSION ------- Wheel Compact Wheel > --- UTILITY ---------- Small Storage Unit Large Matter Pod > --- WEAPON ----------- Light Assault Rifle Light Assault Rifle > --- INVENTORY -------- Light Ion Engine Flight Unit Improved Targeting Computer Improved Targeting Computer Improved Targeting Computer Small Laser Mining Laser [Rating: 8] Favorites ----------- Power Ion Engine Engine Ion Engine Propulsion Compact Wheel Wheel Compact Wheel Utility Small Storage Unit Storage Small Storage Unit Weapon Light Assault Rifle Energy Gun Small Laser Ballistic Gun Light Assault Rifle Build | -11 -10 -10 -9 -9 ------- Run | Jun Mat Min Mat Sto Slots Evolved 2 | . . . 2 . Power . | . . . . . Propulsion 2 | . . . 2 . Utility . | . . . . . Weapon . | . . . . . Parts Attached 11 | 6 1 2 . 2 Power 2 | 1 . . . 1 Engine 2 | 1 . . . 1 Core . | . . . . . Reactor . | . . . . . Propulsion 2 | 2 . . . . Treads . | . . . . . Leg . | . . . . . Wheel 2 | 2 . . . . Hover . | . . . . . Flight . | . . . . . Utility 2 | 1 1 . . . Device . | . . . . . Storage 2 | 1 1 . . . Processor . | . . . . . Hackware . | . . . . . Protection . | . . . . . Artifact . | . . . . . Weapon 5 | 2 . 2 . 1 Energy Gun 3 | 2 . . . 1 Energy Cannon . | . . . . . Ballistic Gun 2 | . . 2 . . Ballistic Cannon . | . . . . . Launcher . | . . . . . Special Weapon . | . . . . . Impact Weapon . | . . . . . Slashing Weapon . | . . . . . Piercing Weapon . | . . . . . Special Melee Weapon . | . . . . . Unidentified Prototypes . | . . . . . Parts Lost 6 | . . . . 6 Power 2 | . . . . 2 Propulsion 2 | . . . . 2 Utility . | . . . . . Weapon 2 | . . . . 2 Highest Loss Streak 6 | . . . . 6 To Critical Strikes . | . . . . . Average Slot Usage (%) 91 | . 97 99 77 72 Engine 13 | . 14 14 11 11 Wheel 25 | . 28 28 22 19 Storage 25 | . 26 28 22 22 Energy Gun 8 | . 28 8 . 2 Ballistic Gun 16 | . . 19 22 17 Naked Turns . | . . . . . Heaviest Build 15 | 12 15 15 15 15 Greatest Support 26 | 26 26 26 26 26 Greatest Overweight (x) . | . . . . . Average Overweight (x) . | . . . . . Largest Inventory Capacity 8 | 8 8 8 8 8 Average Capacity 7 | 7 8 8 8 8 Most Carried 8 | 3 3 5 4 8 Average Carried 4 | 1 2 3 4 6 Final Capacity 8 | 8 8 8 8 8 Final Carried 6 | 2 3 4 4 6 Class Distribution -------------------- 100% | Mutant Dominant Class ---------------- Mutant | -10/Materials Mutant | -10/Mines Mutant | -9/Materials Mutant | -9/Storage Resources | -11 -10 -10 -9 -9 ----------- Run | Jun Mat Min Mat Sto Matter Collected 304 | 193 . 51 . 60 Remotely . | . . . . . Salvage Created 262 | . . . . 262 Parts 14 | . . . . 14 Haulers Intercepted . | . . . . . Recyclers Shooed . | . . . . . Parts Field Recycled . | . . . . . Retrieved Matter . | . . . . . Parts Self-Destructed . | . . . . . Prevented . | . . . . . Kills | -11 -10 -10 -9 -9 ------- Run | Jun Mat Min Mat Sto Combat Hostiles Destroyed 5 | . . . . 5 Guns 5 | . . . . 5 Classes Destroyed 3 | . . . . 3 Grunt 1 | . . . . 1 Brawler 1 | . . . . 1 Sentry 3 | . . . . 3 Best Kill Streak 3 | . . . . 3 Combat Bots Only 3 | . . . . 3 Max Kills in Single Turn 1 | . . . . 1 Gunslinging . | . . . . . Exploded . | . . . . . Melee . | . . . . . Uniques/NPCs Destroyed . | . . . . . Combat | -11 -10 -10 -9 -9 -------- Run | Jun Mat Min Mat Sto Damage Taken 735 | . . . 85 650 Core 280 | . . . 20 260 Absorbed by Shields . | . . . . . Core Remaining (%) 100 | 100 . 100 . . Volleys Fired 31 | . . . . 31 Largest 2 | . . . . 2 Hottest 60 | . . . . 60 Shots Fired 48 | . . . . 48 Gun 48 | . . . . 48 Cannon . | . . . . . Launcher . | . . . . . Special . | . . . . . Kinetic 30 | . . . . 30 Thermal 18 | . . . . 18 Explosive . | . . . . . Electromagnetic . | . . . . . Robot Hit Streak 32 | . . . . 32 Robot Miss Streak 1 | . . . . 1 Penetration Max . | . . . . . Secondary Targets 1 | . . . . 1 Max Gunslinging Chain 1 | . . . . 1 Shots Hit Robots 46 | . . . . 46 Core Hits 14 | . . . . 14 Critical Kills . | . . . . . Critical Parts Destroyed . | . . . . . Critical Strikes . | . . . . . Melee Attacks . | . . . . . Impact . | . . . . . Slashing . | . . . . . Piercing . | . . . . . Sneak Attacks . | . . . . . Combat Hostiles . | . . . . . Follow-up Attacks . | . . . . . Damage Inflicted 424 | . . . . 424 Guns 424 | . . . . 424 Cannons . | . . . . . Explosions . | . . . . . Melee . | . . . . . Ramming . | . . . . . Kinetic 229 | . . . . 229 Thermal 195 | . . . . 195 Explosive . | . . . . . Electromagnetic . | . . . . . Impact . | . . . . . Slashing . | . . . . . Piercing . | . . . . . Highest Corruption . | . . . . . Average Corruption . | . . . . . Corruption Purged . | . . . . . Corruption Blocked . | . . . . . Overload Shots . | . . . . . Overflow Damage . | . . . . . Projectiles . | . . . . . Explosions . | . . . . . Melee . | . . . . . Knockbacks . | . . . . . Impact . | . . . . . Kinetic . | . . . . . Secondary . | . . . . . Self-Inflicted Damage . | . . . . . Shots . | . . . . . Rammed . | . . . . . Targets Rammed . | . . . . . Kicked . | . . . . . Crushed . | . . . . . Highest Temperature 99 | . . . . 99 Average Temperature 51 | . . . . 51 Received Heat Transfer 363 | . . . 36 327 Siege Activations . | . . . . . Robots Corrupted . | . . . . . Combat Hostiles . | . . . . . Parts Fried . | . . . . . Impact Corruptions . | . . . . . Robots Melted . | . . . . . Combat Hostiles . | . . . . . Parts Melted 1 | . . . . 1 Heat Transferred 450 | . . . . 450 Parts Sabotaged . | . . . . . Parts Stolen . | . . . . . Parts Stripped . | . . . . . Power Chain Reactions . | . . . . . Missiles Intercepted . | . . . . . Alert | -11 -10 -10 -9 -9 ------- Run | Jun Mat Min Mat Sto Peak Influence 175 | . . . . 175 Initial . | . . . . . Average 18 | . . . . 76 Maximum Alert Level . | . . . . . Low Security (%) 100 | 100 100 100 100 100 Level 1 . | . . . . . Level 2 . | . . . . . Level 3 . | . . . . . Level 4 . | . . . . . Level 5 . | . . . . . High Security . | . . . . . Max Security . | . . . . . Squads Dispatched 2 | . . . 1 1 Investigation . | . . . . . Extermination . | . . . . . Reinforcement 2 | . . . 1 1 Assault . | . . . . . Garrison . | . . . . . Intercept . | . . . . . Searches Triggered . | . . . . . Construction Impeded . | . . . . . Haulers Reinforced . | . . . . . Active Scanning Responses . | . . . . . Cargo Convoy Interrupts . | . . . . . Stealth | -11 -10 -10 -9 -9 --------- Run | Jun Mat Min Mat Sto Distress Signals 5 | . 1 . 1 3 Communications Jammed . | . . . . . Distress Signals . | . . . . . Times Spotted 16 | . . . 3 13 Peak Tracking Total 9 | . . . 2 9 Tactical Retreats . | . . . . . Traps | -11 -10 -10 -9 -9 ------- Run | Jun Mat Min Mat Sto Traps Triggered . | . . . . . Indirectly . | . . . . . Trap Hack Attempts . | . . . . . Triggered . | . . . . . Disarmed . | . . . . . Reprogrammed . | . . . . . Reused . | . . . . . Traps Extracted . | . . . . . Installed . | . . . . . Triggered . | . . . . . Machines | -11 -10 -10 -9 -9 ---------- Run | Jun Mat Min Mat Sto Machines Disabled . | . . . . . Max in Single Turn . | . . . . . Machines Repaired . | . . . . . Machines Sabotaged . | . . . . . Overloaded Fab Kills . | . . . . . Hacking | -11 -10 -10 -9 -9 --------- Run | Jun Mat Min Mat Sto Machines Accessed 2 | . 1 1 . . Terminals 2 | . 1 1 . . Fabricators . | . . . . . Repair Stations . | . . . . . Recycling Units . | . . . . . Scanalyzers . | . . . . . Garrison Access . | . . . . . Total Hacks 5 | . 2 3 . . Successful 4 | . 1 3 . . Failed 1 | . 1 . . . Catastrophic 1 | . 1 . . . Database Lockouts . | . . . . . Manual 3 | . 2 1 . . Terminals 5 | . 2 3 . . Fabricators . | . . . . . Repair Stations . | . . . . . Recycling Units . | . . . . . Scanalyzers . | . . . . . Garrison Access . | . . . . . Terminal Hacks 3 | . 1 2 . . Branch Access Points 1 | . 1 . . . Dispatch Records 1 | . . 1 . . Investigation Status 1 | . . 1 . . Fabricator Hacks . | . . . . . Repair Station Hacks . | . . . . . Recycling Unit Hacks . | . . . . . Scanalyzer . | . . . . . Garrison Access Hacks . | . . . . . Unauthorized Hacks 1 | . . 1 . . Terminals 1 | . . 1 . . Botnet 1 | . . 1 . . Fabricators . | . . . . . Repair Stations . | . . . . . Recycling Units . | . . . . . Scanalyzers . | . . . . . Garrison Access . | . . . . . Data Cores Recovered . | . . . . . Used . | . . . . . Hacking Detections 1 | . 1 . . . Full Trace Events 1 | . 1 . . . Feedback Events . | . . . . . Feedback Blocked . | . . . . . Robot Schematics Acquired . | . . . . . Robots Built . | . . . . . Authchips . | . . . . . Time . | . . . . . Total Robot Build Rating . | . . . . . Part Schematics Acquired . | . . . . . Parts Built . | . . . . . Authchips . | . . . . . Time . | . . . . . Total Part Build Rating . | . . . . . Parts Repaired . | . . . . . Time . | . . . . . Parts Recycled . | . . . . . Recycled Matter . | . . . . . Retrieved Matter . | . . . . . Retrieved Components . | . . . . . Parts Scanalyzed . | . . . . . Part Schematics Acquired . | . . . . . Parts Damaged . | . . . . . Bothacking | -11 -10 -10 -9 -9 ------------ Run | Jun Mat Min Mat Sto Used RIF Installer . | . . . . . Robots Hacked . | . . . . . Non-combat . | . . . . . Combat . | . . . . . Robot Hacks Applied . | . . . . . Relay Couplers Released . | . . . . . Fabnet Peak Effective % . | . . . . . Robots Rewired . | . . . . . Allies Hacked . | . . . . . Hacks Repelled . | . . . . . Allies | -11 -10 -10 -9 -9 -------- Run | Jun Mat Min Mat Sto Total Allies . | . . . . . Largest Group . | . . . . . Highest-Rated Group . | . . . . . Highest-Rated Ally . | . . . . . Total Orders . | . . . . . Ally Attacks . | . . . . . Total Damage . | . . . . . Kills . | . . . . . Allies Corrupted . | . . . . . Allies Melted . | . . . . . Intel | -11 -10 -10 -9 -9 ------- Run | Jun Mat Min Mat Sto Robot Analysis Total . | . . . . . Derelict Logs Recovered . | . . . . . Drone Launches . | . . . . . Drone Recoveries . | . . . . . Exploration | -11 -10 -10 -9 -9 ------------- Run | Jun Mat Min Mat Sto Turns Passed 677 | 53 73 357 34 160 Spaces Moved 616 | 45 63 381 38 89 Core 3 | 3 . . . . Treads . | . . . . . Legs . | . . . . . Wheels 613 | 42 63 381 38 89 Hover . | . . . . . Flight . | . . . . . Fastest Speed 50 | 50 90 90 90 90 Average Speed 89 | 87 90 90 90 90 Slowest Speed 90 | 90 90 90 90 90 Overloaded Moves . | . . . . . Propulsion Burnouts . | . . . . . Robots Hopped . | . . . . . Cave-ins Triggered . | . . . . . Exploration Rate (%) 19 | 3 16 47 6 24 Regions Visited 4 Branch Regions 2 Pre-discovered Areas 1 | . . 1 . . Known Exits Taken 1 | . 1 . . . Unknown Exits Taken 3 | 1 . 1 1 . Scrap Searched . | . . . . . Spaces Dug . | . . . . . Terrain Destroyed . | . . . . . Melee . | . . . . . Projectile . | . . . . . AOE . | . . . . . Terrain Rammed . | . . . . . Walls Destroyed . | . . . . . Machines Disabled . | . . . . . Actions | -11 -10 -10 -9 -9 --------- Run | Jun Mat Min Mat Sto Total 695 | 58 79 395 37 126 Wait 22 | . 14 8 . . Move 612 | 44 62 380 37 89 Hop . | . . . . . Pick Up 17 | 8 2 3 . 4 Fast Attach . | . . . . . Attach 11 | 6 1 2 . 2 Detach . | . . . . . Swap . | . . . . . Drop 2 | . . 2 . . Fire 31 | . . . . 31 Melee . | . . . . . Ram . | . . . . . Kick . | . . . . . Crush . | . . . . . Escape Stasis . | . . . . . Rewire . | . . . . . Trap . | . . . . . Miscellaneous . | . . . . . Route ------- -11/Junkyard -10/Materials -10/Mines -9/Materials -9/Storage History --------- Turn | Location | Event 2 | -11/Junkyard | Met Revision 17 16 | -11/Junkyard | Discovered new exit (range 15) 54 | -11/Junkyard | Entered Materials 76 | -10/Materials | Identified exit to Mines 108 | -10/Materials | Met 8R-AWN 127 | -10/Materials | Entered Mines 128 | -10/Mines | Followed 8R-AWN into the Mines 219 | -10/Mines | Discovered new exit (range 11) 317 | -10/Mines | Learned location of Storage (-9) 318 | -10/Mines | Build established: Mutant 484 | -10/Mines | Entered Materials 484 | -9/Materials | Evolved 2 slots: Propulsion x2 506 | -9/Materials | Discovered new exit (range 13) 518 | -9/Materials | Entered Storage 662 | -9/Storage | Core integrity fell below 50% 678 | -9/Storage | Self-destructed Last Messages --------------- 00584_ Switching to secondary target: Y-45 Defender. 00598_ W-16 Scout distress signal alerts nearby ally. 00626_ B-36 Bruiser destroyed. 00632_ Ion Engine destroyed. 00635_ Lgt. Assault Rifle destroyed. 00640_ Wheel destroyed. 00641_ M-13 Machinist repairs Y-45 Defender. 00647_ Heat Sink melted. 00647_ Y-45 Defender destroyed. 00648_ Acquired 60 matter. 00649_ Lgt. Assault Rifle destroyed. 00649_ Critical hit (Burn: +37). 00653_ R-06 Scavenger collects Hammer. 00654_ G-34 Mercenary destroyed. 00656_ R-06 Scavenger collects Lgt. Treads. 00658_ Y-45 Defender destroyed. 00666_ Com. Wheel destroyed. 00670_ U-05 Engineer destroyed. 00671_ Lgt. Ion Engine destroyed. 00677_ M-13 Machinist repairs G-34 Mercenary. Map ----- +----------------------------------------------------+ | ??????????????????????????????????????##" "###??# | | ????????????????????????????????########"R??????# | | ????????????????????????????????# ##"???????# | | ????????????????????????????????# = #?????????# | | ????????????????????????????????#! #?????????# | | ????????????????????????????????# #?????????# | | ????????????????????????????????# #?????????# | | ????????????????????????????????# ########### | | ????????????????????????????????# ## # | | ???????????????????????????????## !/ ## ? # | | ????????????????????????????????/ / ## "??" # | | ???????????????????????########## ## "???" # | | ???????????????????????# # ## "????" " | | ???????????????????????# """ # ?# ""???" # | | ???????????????????????# """ ###+##?# ""??" # | | ???????????????????????+ """ # ### """" #! | | ???????????????????????# / + *+% | | ???????????????????????# """ # ############+ | | ???????????????????????# """ # #?????????# | | ???????????????????????# """ ## ##?????????# | | ???????????????????????# ## #??????????# | | ???????????????????????###+####### #??????????##T | | ?????????????????# ##### ####### #???????????## | | ?????????????????# %= #????????????? | | ?????????????????# #####m##+#### #????????????? | | ????????????????????????#@%g%![ ## #????????????? | | ????????????????????????# =!gg% ## #????????????? | | ????????????????????????# !=*! ## #????????????? | | ????????????????????????# ## #????????????? | | ????????????????????????# # ????????????? | | ????????????????????????# + ????????????? | | ????????????????????????# #????????????????? | | ????????????????????????# #????????????????? | | ????????????????????????# #????????????????? | | ????????????????????????# #????????????????? | | ????????????????????????# #????????????????? | | ????????????????????????#########????????????????? | | ?????????????????????????????????????????????????? | | ?????????????????????????????????????????????????? | | ?????????????????????????????????????????????????? | | ?????????????????????????????????????????????????? | | ?????????????????????????????????????????????????? | | ?????????????????????????????????????????????????? | | ?????????????????????????????????????????????????? | | ?????????????????????????????????????????????????? | | | | | | | | | | | +----------------------------------------------------+ Best States ------------- Heat Dissipation 28 Energy Generation 10 Energy Capacity 250 Matter Stores 289 Matter Capacity 450 Sight Range 16 Terrain Scan Density 10 Resistance: KI 20 Resistance: TH 20 Resistance: EX 20 Resistance: EM 20 Resistance: I 20 Resistance: S 20 Resistance: P 20 Evasion (%) 42 Offensive Hacking 10 Item Schematics ----------------- None Robot Schematics ------------------ None Fabricated ------------ Nothing Alien Tech Used ----------------- None Achievements -------------- None Challenges ------------ None Game ------ Seed AlphaFireProjector Manual? 0 Play Time 00:12:08 Cumulative 36.7 hours Start 2023.12.31 @ 20:35:23 End 2023.12.31 @ 20:53:23 Sessions 1 Manual Loads 0 Difficulty Adventurer Special Mode None Game No. 6 Rogue 0 Adventurer 6 Explorer 0 Win Type - Total 1 Types 1/0/0/0/0/0/0/0/0 Lore% 11 Gallery% 31 Achievement% 28 Wizard Run 0 Options --------- ASCII 0 Keyboard 0 Movement Arrows Keybinds 0 Fullscreen 1 Font 18/TerminusBold Map View 76x50 Tactical HUD 1 Map Filters NONE Filters NONE Steam 0 RUN: ee0234be-a8c0-4743-9c1c-145556ca9289